[Event "EIRCC 2019"]
[Site "Tallinn"]
[Date "2019.12.06"]
[Round "9.14"]
[White "Lintchevski, Daniil"]
[Black "Dordzhieva, Dinara"]
[Result "1/2-1/2"]
[ECO "A05"]
[WhiteElo "2515"]
[BlackElo "2310"]
[Annotator "ChessBase"]
[PlyCount "40"]
[EventDate "2019.12.05"]
[EventType "swiss"]
[EventCountry "EST"]
[SourceTitle "playchess.com"]
[Source "ChessBase"]
[SourceQuality "1"]
[TimeControl "900+10"]

1. Nf3 {[%emt 0:00:00]} Nf6 {[%emt 0:00:05]} 2. c4 {[%emt 0:00:00]} e6 {[%emt 0:00:05]} 3. Nc3 {[%emt 0:00:14]} d5 {[%emt 0:00:01]} 4. d4 {[%emt 0:00:04]} dxc4 {[%emt 0:00:07]} 5. e3 {[%emt 0:00:10]} a6 {[%emt 0:00:04]} 6. a4 {[%emt 0:00:27]} c5 {[%emt 0:00:48]} 7. Bxc4 {[%emt 0:00:04]} Be7 {[%emt 0:00:35]} 8. O-O {[%emt 0:00:06]} O-O {[%emt 0:00:03]} 9. Qe2 {[%emt 0:00:34]} Nc6 {[%emt 0:00:42]} 10. Rd1 {[%emt 0:00:11]} cxd4 {[%emt 0:00:00]} 11. exd4 {[%emt 0:00:03]} Nb4 {[%emt 0:00:22]} 12. Ne5 {[%emt 0:00:20]} b6 {[%emt 0:00:55]} 13. Qf3 {[%emt 0:01:25]} Rb8 {[%emt 0:00:53]} 14. Qg3 {[%emt 0:00:13]} Bb7 {[%emt 0:00:20]} 15. Bh6 {[%emt 0:00:21]} Ne8 {[%emt 0:00:09]} 16. Be3 {[%emt 0:04:39]} Rc8 {[%emt 0:00:53]} 17. Bb3 {[%emt 0:00:01]} Nf6 {[%emt 0:00:11]} 18. Bh6 {[%emt 0:00:24]} Ne8 {[%emt 0:00:02]} 19. Be3 {[%emt 0:00:06]} Nf6 {[%emt 0:00:14]} 20. Bh6 {[%emt 0:00:18]} Ne8 {[%emt 0:00:17]} 1/2-1/2

[Event "EIRCC 2019"]
[Site "Tallinn"]
[Date "2019.12.06"]
[Round "9.15"]
[White "Shvyrjov, Igor"]
[Black "Lobanov, Sergei"]
[Result "1/2-1/2"]
[ECO "A46"]
[WhiteElo "2296"]
[BlackElo "2483"]
[Annotator "ChessBase"]
[PlyCount "117"]
[EventDate "2019.12.05"]
[EventType "swiss"]
[EventCountry "EST"]
[SourceTitle "playchess.com"]
[Source "ChessBase"]
[SourceQuality "1"]
[TimeControl "900+10"]

1. d4 {[%emt 0:00:00]} Nf6 {[%emt 0:00:00]} 2. Nf3 {[%emt 0:00:00]} d5 {[%emt 0:00:09]} 3. c3 {[%emt 0:00:03]} c5 {[%emt 0:00:03]} 4. Bf4 {[%emt 0:00:18]} e6 {[%emt 0:00:26]} 5. e3 {[%emt 0:00:03]} Nc6 {[%emt 0:00:05]} 6. Nbd2 {[%emt 0:00:02]} cxd4 {[%emt 0:00:15]} 7. exd4 {[%emt 0:00:04]} Nh5 {[%emt 0:00:02]} 8. Bg3 {[%emt 0:00:08]} Be7 {[%emt 0:00:30]} 9. Bd3 {[%emt 0:00:07]} h6 {[%emt 0:01:05]} 10. Qe2 {[%emt 0:00:52]} Bd7 {[%emt 0:00:26]} 11. O-O {[%emt 0:01:04]} Nxg3 {[%emt 0:00:10]} 12. hxg3 {[%emt 0:00:01]} Qc7 {[%emt 0:00:21]} 13. Rfe1 {[%emt 0:00:15]} O-O-O {[%emt 0:01:01]} 14. b4 {[%emt 0:00:11]} Kb8 {[%emt 0:00:11]} 15. Nb3 {[%emt 0:00:04]} h5 {[%emt 0:00:27]} 16. a4 {[%emt 0:00:19]} g5 {[%emt 0:03:36]} 17. a5 {[%emt 0:00:06]} g4 {[%emt 0:00:01]} 18. Nh4 {[%emt 0:06:39]} Bd6 {[%emt 0:00:31]} 19. Nc5 {[%emt 0:00:27]} Bc8 {[%emt 0:00:42]} 20. Bb5 {[%emt 0:02:59]} Ne7 {[%emt 0:02:00]} 21. Ra2 {[%emt 0:00:32]} Nf5 {[%emt 0:02:13]} 22. a6 {[%emt 0:03:02]} b6 {[%emt 0:00:02]} 23. Nb7 {[%emt 0:00:01]} Nxg3 {[%emt 0:01:24]} 24. Qd3 {[%emt 0:00:01]} Ne4 {[%emt 0:00:54]} 25. Nxd8 {[%emt 0:00:03]} Rxd8 {[%emt 0:00:11]} 26. c4 {[%emt 0:00:02]} g3 {[%emt 0:01:11]} 27. Rxe4 {[%emt 0:00:09]} dxe4 {[%emt 0:00:11]} 28. Qxe4 {[%emt 0:00:01]} gxf2+ {[%emt 0:00:02]} 29. Rxf2 {[%emt 0:00:01]} f5 {[%emt 0:00:45]} 30. Qe3 {[%emt 0:00:56]} Bg3 {[%emt 0:00:03]} 31. Nf3 {[%emt 0:00:02]} Bxf2+ {[%emt 0:00:39]} 32. Kxf2 {[%emt 0:00:01]} Qd6 {[%emt 0:00:09]} 33. Ne5 {[%emt 0:00:05]} Rg8 {[%emt 0:00:24]} 34. Nc6+ {[%emt 0:01:10]} Kc7 {[%emt 0:00:06]} 35. c5 {[%emt 0:00:01]} Qd5 {[%emt 0:00:07]} 36. Qf4+ {[%emt 0:00:02]} e5 {[%emt 0:00:02]} 37. Qxe5+ {[%emt 0:00:09]} Qxe5 {[%emt 0:00:01]} 38. Nxe5 {[%emt 0:00:02]} Be6 {[%emt 0:00:15]} 39. Bc6 {[%emt 0:00:08]} Rd8 {[%emt 0:00:27]} 40. Ke3 {[%emt 0:00:02]} Bd5 {[%emt 0:00:10]} 41. b5 {[%emt 0:00:21]} bxc5 {[%emt 0:00:11]} 42. dxc5 {[%emt 0:00:01]} Bxc6 43. Nxc6 {[%emt 0:00:02]} Rd5 {[%emt 0:00:18]} 44. Nd4 {[%emt 0:00:14]} Re5+ {[%emt 0:00:20]} 45. Kf3 {[%emt 0:00:03]} Rxc5 {[%emt 0:00:11]} 46. Ne6+ {[%emt 0:00:34]} Kb6 {[%emt 0:00:00]} 47. Nxc5 {[%emt 0:00:01]} Kxc5 {[%emt 0:00:01]} 48. Kf4 {[%emt 0:00:01]} Kxb5 {[%emt 0:00:01]} 49. Kxf5 {[%emt 0:00:01]} Kxa6 {[%emt 0:00:01]} 50. Kg5 {[%emt 0:00:00]} Kb5 {[%emt 0:00:02]} 51. Kxh5 a5 52. g4 {[%emt 0:00:02]} a4 {[%emt 0:00:00]} 53. g5 {[%emt 0:00:01]} a3 {[%emt 0:00:01]} 54. g6 a2 55. g7 {[%emt 0:00:02]} a1=Q {[%emt 0:00:04]} 56. g8=Q {[%emt 0:00:01]} Qh1+ {[%emt 0:00:02]} 57. Kg6 {[%emt 0:00:01]} Qg2+ {[%emt 0:00:01]} 58. Kf7 {[%emt 0:00:02]} Qxg8+ {[%emt 0:00:01]} 59. Kxg8 1/2-1/2

[Event "EIRCC 2019"]
[Site "Tallinn"]
[Date "2019.12.06"]
[Round "9.16"]
[White "Kanep, Meelis"]
[Black "Chukavin, Kirill"]
[Result "1-0"]
[ECO "E04"]
[WhiteElo "2466"]
[BlackElo "2290"]
[Annotator "ChessBase"]
[PlyCount "65"]
[EventDate "2019.12.05"]
[EventType "swiss"]
[EventCountry "EST"]
[SourceTitle "playchess.com"]
[Source "ChessBase"]
[SourceQuality "1"]
[TimeControl "900+10"]

1. d4 {[%emt 0:00:00]} Nf6 {[%emt 0:00:00]} 2. c4 {[%emt 0:00:01]} e6 {[%emt 0:00:08]} 3. Nf3 {[%emt 0:00:09]} d5 {[%emt 0:00:45]} 4. g3 {[%emt 0:00:02]} dxc4 {[%emt 0:00:07]} 5. Bg2 {[%emt 0:00:07]} Bd7 {[%emt 0:00:01]} 6. Ne5 {[%emt 0:00:11]} Bc6 {[%emt 0:00:02]} 7. Nxc6 {[%emt 0:00:12]} Nxc6 {[%emt 0:00:02]} 8. O-O {[%emt 0:00:04]} Qd7 {[%emt 0:00:03]} 9. Nc3 {[%emt 0:00:32]} Nxd4 {[%emt 0:02:51]} 10. Bxb7 {[%emt 0:00:13]} Rb8 {[%emt 0:00:25]} 11. Bg2 {[%emt 0:00:04]} Nb5 {[%emt 0:03:58]} 12. Nxb5 {[%emt 0:01:20]} Qxb5 {[%emt 0:00:46]} 13. Be3 {[%emt 0:01:06]} Bc5 {[%emt 0:01:14]} 14. Bxc5 {[%emt 0:01:13]} Qxc5 {[%emt 0:00:01]} 15. Qa4+ {[%emt 0:00:20]} Ke7 {[%emt 0:00:15]} 16. Rac1 {[%emt 0:00:37]} Rb4 {[%emt 0:00:21]} 17. Qa3 {[%emt 0:00:16]} Rhb8 {[%emt 0:00:41]} 18. Rc2 {[%emt 0:00:06]} a5 {[%emt 0:01:44]} 19. Rfc1 {[%emt 0:00:45]} a4 {[%emt 0:01:20]} 20. e3 {[%emt 0:02:26]} Nd5 {[%emt 0:01:06]} 21. Bf1 {[%emt 0:00:21]} Nb6 {[%emt 0:00:32]} 22. Qc3 {[%emt 0:01:03]} Kf8 {[%emt 0:00:07]} 23. h3 {[%emt 0:00:27]} f6 {[%emt 0:01:09]} 24. Qe1 {[%emt 0:01:34]} Qb5 {[%emt 0:00:18]} 25. a3 {[%emt 0:00:57]} Rxb2 {[%emt 0:00:30]} 26. Bxc4 {[%emt 0:00:04]} Nxc4 {[%emt 0:00:08]} 27. Rxc4 {[%emt 0:00:01]} Rb1 {[%emt 0:00:28]} 28. Rxc7 {[%emt 0:00:41]} Rxc1 {[%emt 0:00:02]} 29. Rxc1 {[%emt 0:00:46]} Qb2 {[%emt 0:00:16]} 30. Qd1 {[%emt 0:01:40]} Qxa3 {[%emt 0:00:13]} 31. Rc7 {[%emt 0:00:03]} Re8 {[%emt 0:00:23]} 32. Qh5 {[%emt 0:00:54]} g6 {[%emt 0:00:13]} 33. Qh6+ {[%emt 0:00:04]} 1-0

[Event "EIRCC 2019"]
[Site "Tallinn"]
[Date "2019.12.06"]
[Round "9.17"]
[White "Rogule, Laura"]
[Black "Ladva, Ottomar"]
[Result "0-1"]
[ECO "E04"]
[WhiteElo "2292"]
[BlackElo "2446"]
[Annotator "RC"]
[PlyCount "178"]
[EventDate "2019.12.05"]
[EventType "swiss"]
[EventCountry "EST"]
[SourceTitle "playchess.com"]
[Source "ChessBase"]
[SourceQuality "1"]
[TimeControl "900+10"]

1. c4 {[%emt 0:00:00]} e6 {[%emt 0:00:00]} 2. Nf3 {[%emt 0:00:00]} d5 {[%emt 0:00:00]} 3. d4 {[%emt 0:00:15]} Nf6 {[%emt 0:00:02]} 4. g3 {[%emt 0:00:02]} dxc4 {[%emt 0:00:53]} 5. Bg2 {[%emt 0:00:44]} c5 {[%emt 0:00:03]} 6. Qa4+ {[%emt 0:01:40]} Bd7 {[%emt 0:01:25]} 7. Qxc4 {[%emt 0:00:04]} Nc6 {[%emt 0:03:26]} 8. O-O {[%emt 0:04:06]} b5 {[%emt 0:02:24]} 9. Qd3 {[%emt 0:01:02]} c4 {[%emt 0:00:14]} 10. Qd1 {[%emt 0:00:27]} Rc8 {[%emt 0:01:15]} 11. Bf4 {[%emt 0:03:02]} Be7 {[%emt 0:00:10]} 12. Ne5 {[%emt 0:00:57]} O-O {[%emt 0:00:50]} 13. e4 {[%emt 0:00:44]} Be8 {[%emt 0:03:06]} 14. d5 {[%emt 0:01:46]} exd5 {[%emt 0:00:14]} 15. exd5 {[%emt 0:00:02]} Nxe5 {[%emt 0:00:06]} 16. Bxe5 {[%emt 0:00:02]} Bd6 {[%emt 0:00:59]} 17. Bd4 {[%emt 0:00:25]} a6 {[%emt 0:00:16]} 18. Nc3 {[%emt 0:00:34]} Bd7 {[%emt 0:00:02]} 19. Re1 {[%emt 0:00:57]} Bf5 {[%emt 0:00:46]} 20. Qf3 {[%emt 0:00:26]} Bg6 {[%emt 0:00:06]} 21. a3 {[%emt 0:00:18]} Nd7 {[%emt 0:00:28]} 22. Bh3 {[%emt 0:00:15]} Rc7 {[%emt 0:00:40]} 23. Bf5 {[%emt 0:00:30]} Nc5 {[%emt 0:00:44]} 24. Bxc5 {[%emt 0:00:22]} Bxc5 {[%emt 0:00:02]} 25. Ne4 {[%emt 0:00:04]} Bd4 {[%emt 0:00:27]} 26. d6 {[%emt 0:00:15]} Ra7 {[%emt 0:00:18]} 27. Re2 {[%emt 0:00:06]} Qb6 {[%emt 0:00:20]} 28. Rd1 {[%emt 0:00:08]} Rd8 {[%emt 0:00:04]} 29. Qf4 {[%emt 0:00:18]} Bxf5 {[%emt 0:00:14]} 30. Qxf5 {[%emt 0:00:01]} g6 {[%emt 0:00:07]} 31. Qd5 {[%emt 0:00:24]} Bg7 {[%emt 0:00:02]} 32. Nc5 {[%emt 0:00:11]} Bf8 {[%emt 0:00:13]} 33. Ne4 {[%emt 0:00:03]} Bxd6 {[%emt 0:00:20]} 34. Nxd6 {[%emt 0:00:16]} Rad7 {[%emt 0:00:02]} 35. Red2 {[%emt 0:00:09]} Rxd6 {[%emt 0:00:01]} 36. Qxd6 {[%emt 0:00:02]} Rxd6 {[%emt 0:00:01]} 37. Rxd6 {[%emt 0:00:02]} Qa5 {[%emt 0:00:04]} 38. Rc1 {[%emt 0:00:07]} Qa4 {[%emt 0:00:05]} 39. Kg2 {[%emt 0:00:11]} Qb3 {[%emt 0:00:23]} 40. Rd2 {[%emt 0:00:08]} a5 {[%emt 0:00:05]} 41. Rc3 {[%emt 0:00:10]} Qa2 {[%emt 0:00:03]} 42. Rdc2 {[%emt 0:00:20]} Kg7 {[%emt 0:00:25]} 43. g4 {[%emt 0:00:21]} Qb1 {[%emt 0:00:12]} 44. Re2 {[%emt 0:00:07]} Qd1 {[%emt 0:00:05]} 45. Rce3 {[%emt 0:00:08]} b4 {[%emt 0:00:09]} 46. axb4 {[%emt 0:00:02]} axb4 {[%emt 0:00:01]} 47. Kf3 {[%emt 0:00:07]} Qd6 {[%emt 0:00:44]} 48. Kg2 {[%emt 0:00:10]} Qd5+ {[%emt 0:00:01]} 49. f3 {[%emt 0:00:04]} h5 {[%emt 0:00:12]} 50. gxh5 {[%emt 0:00:26]} Qg5+ {[%emt 0:00:05]} 51. Kf1 {[%emt 0:00:08]} Qxh5 {[%emt 0:00:01]} 52. Ke1 {[%emt 0:00:03]} Qh4+ {[%emt 0:00:14]} 53. Kd2 {[%emt 0:00:07]} Qd4+ {[%emt 0:00:02]} 54. Kc2 {[%emt 0:00:09]} b3+ {[%emt 0:00:14]} 55. Kc1 {[%emt 0:00:01]} Qf4 {[%emt 0:00:26]} 56. Kd2 {[%emt 0:00:05]} Qd4+ {[%emt 0:00:02]} 57. Kc1 {[%emt 0:00:02]} f5 {[%emt 0:00:06]} 58. Rc3 {[%emt 0:00:20]} Kh6 {[%emt 0:00:03]} 59. Rg2 {[%emt 0:00:14]} Kh5 {[%emt 0:00:26]} 60. Re2 {[%emt 0:00:15]} g5 {[%emt 0:00:10]} 61. Rce3 {[%emt 0:00:05]} Qa7 {[%emt 0:00:15]} 62. Kd2 {[%emt 0:00:11]} Qa5+ {[%emt 0:00:01]} 63. Rc3 {[%emt 0:00:05]} f4 {[%emt 0:00:11]} 64. Ke1 {[%emt 0:00:20]} Qa1+ {[%emt 0:00:08]} 65. Kf2 {[%emt 0:00:04]} Qh1 {[%emt 0:00:03]} 66. Rxc4 {[%emt 0:00:07]} Qxh2+ {[%emt 0:00:03]} 67. Ke1 {[%emt 0:00:15]} Qg3+ {[%emt 0:00:11]} 68. Rf2 {[%emt 0:00:10]} Qg1+ {[%emt 0:00:05]} 69. Ke2 {[%emt 0:00:04]} Qb1 {[%emt 0:00:05]} 70. Rh2+ {[%emt 0:00:28]} Kg6 {[%emt 0:00:01]} 71. Rc6+ {[%emt 0:00:06]} Kf7 {[%emt 0:00:50]} 72. Rc7+ {[%emt 0:00:09]} Kg6 {[%emt 0:00:12]} 73. Rc6+ {[%emt 0:00:05]} Kf5 {[%emt 0:00:08]} 74. Rc5+ {[%emt 0:00:05]} Kf6 {[%emt 0:00:07]} 75. Rh6+ {[%emt 0:00:31]} Kg7 {[%emt 0:00:01]} 76. Rd6 {[%emt 0:00:15]} Qxb2+ {[%emt 0:00:06]} 77. Rd2 {[%emt 0:00:05]} Qf6 {[%emt 0:00:19]} 78. Rdd5 {[%emt 0:00:17]} Kg6 {[%emt 0:00:13]} 79. Rb5 {[%emt 0:00:05]} b2 {[%emt 0:00:15]} 80. Rd2 {[%emt 0:00:08]} Qe6+ {[%emt 0:00:09]} 81. Kd1 {[%emt 0:00:11]} Qc6 {[%emt 0:00:05]} 82. Rbxb2 {[%emt 0:00:08]} Qxf3+ {[%emt 0:00:02]} 83. Ke1 {[%emt 0:00:03]} Qh1+ {[%emt 0:00:02]} 84. Kf2 {[%emt 0:00:05]} Kh5 {[%emt 0:00:06]} 85. Ke2 {[%emt 0:00:14]} Kg4 {[%emt 0:00:08]} 86. Rb3 {[%emt 0:00:10]} f3+ {[%emt 0:00:22]} 87. Kf2 {[%emt 0:00:14]} Qh2+ {[%emt 0:00:08]} 88. Ke3 {[%emt 0:00:02]} Qf4+ {[%emt 0:00:04]} 89. Kd3 {[%emt 0:00:01]} f2 {[%emt 0:00:10] Kd4} 0-1

[Event "EIRCC 2019"]
[Site "Tallinn"]
[Date "2019.12.06"]
[Round "9.18"]
[White "D`costa, Lorin"]
[Black "Chibukhchyan, Erik"]
[Result "1-0"]
[ECO "A45"]
[WhiteElo "2407"]
[BlackElo "2211"]
[Annotator "NA"]
[PlyCount "87"]
[EventDate "2019.12.05"]
[EventType "swiss"]
[EventCountry "EST"]
[SourceTitle "playchess.com"]
[Source "ChessBase"]
[SourceQuality "1"]
[TimeControl "900+10"]

1. d4 {[%emt 0:00:17]} Nf6 {[%emt 0:01:02]} 2. Bf4 {[%emt 0:00:14]} e6 {[%emt 0:00:02]} 3. e3 {[%emt 0:00:03]} c5 {[%emt 0:00:01]} 4. Nf3 {[%emt 0:00:18]} cxd4 {[%emt 0:00:02]} 5. exd4 {[%emt 0:00:01]} b6 {[%emt 0:00:04]} 6. c3 {[%emt 0:00:13]} Bb7 {[%emt 0:00:03]} 7. Nbd2 {[%emt 0:00:04]} Be7 {[%emt 0:00:03]} 8. h3 {[%emt 0:00:08]} O-O {[%emt 0:00:04]} 9. Bd3 {[%emt 0:00:03]} d6 {[%emt 0:00:02]} 10. Bh2 {[%emt 0:00:07]} Nbd7 {[%emt 0:00:02]} 11. O-O {[%emt 0:00:05]} a6 {[%emt 0:00:03]} 12. a4 {[%emt 0:00:06]} h6 {[%emt 0:00:05]} 13. Re1 {[%emt 0:00:09]} Re8 {[%emt 0:00:01]} 14. Qe2 {[%emt 0:00:07]} Qc7 {[%emt 0:00:03]} 15. Nc4 {[%emt 0:00:13]} Bf8 {[%emt 0:00:16]} 16. Ne3 {[%emt 0:00:04]} g6 {[%emt 0:00:59]} 17. Nd2 {[%emt 0:05:29]} e5 {[%emt 0:02:33]} 18. dxe5 {[%emt 0:00:35]} Nxe5 {[%emt 0:00:09]} 19. Bc2 {[%emt 0:00:19]} Rad8 {[%emt 0:01:19]} 20. Rad1 {[%emt 0:00:22]} Bg7 {[%emt 0:00:27]} 21. Ndc4 {[%emt 0:01:14]} Nh5 {[%emt 0:05:23]} 22. Bb3 {[%emt 0:00:19]} Qc5 {[%emt 0:00:36]} 23. Rd2 {[%emt 0:04:24]} b5 {[%emt 0:01:01]} 24. axb5 {[%emt 0:00:02]} axb5 {[%emt 0:00:03]} 25. Na5 {[%emt 0:00:57]} Ba8 {[%emt 0:00:11]} 26. Bd5 {[%emt 0:00:31]} Qb6 {[%emt 0:02:46]} 27. b4 {[%emt 0:00:13]} Bc6 {[%emt 0:00:35]} 28. Bxe5 {[%emt 0:01:03]} Bxd5 {[%emt 0:01:21]} 29. Bxg7 {[%emt 0:00:15]} Nxg7 {[%emt 0:00:20]} 30. Rxd5 {[%emt 0:00:05]} Nf5 {[%emt 0:00:04]} 31. Qxb5 {[%emt 0:00:24]} Qc7 {[%emt 0:00:11]} 32. Qd3 {[%emt 0:00:47]} Re6 {[%emt 0:00:14]} 33. Nac4 {[%emt 0:00:21]} Rde8 {[%emt 0:00:02]} 34. Rd1 {[%emt 0:00:09]} Qa7 {[%emt 0:00:09]} 35. Rf1 {[%emt 0:00:24]} Nh4 {[%emt 0:00:13]} 36. Qd4 {[%emt 0:00:11]} Qe7 {[%emt 0:00:03]} 37. Nxd6 {[%emt 0:00:12]} Ra8 {[%emt 0:00:08]} 38. c4 {[%emt 0:00:15]} Ra3 {[%emt 0:00:03]} 39. c5 {[%emt 0:00:07]} f5 {[%emt 0:00:16]} 40. Ndc4 {[%emt 0:00:11]} Ra7 {[%emt 0:00:23]} 41. Rd8+ {[%emt 0:00:11]} Kf7 {[%emt 0:00:01]} 42. Qh8 {[%emt 0:00:19]} f4 {[%emt 0:00:25]} 43. Qh7+ {[%emt 0:00:16]} Kf6 {[%emt 0:00:01]} 44. Nd5+ {[%emt 0:00:02] Ke5} 1-0

[Event "EIRCC 2019"]
[Site "Tallinn"]
[Date "2019.12.06"]
[Round "9.19"]
[White "Postny, Evgeny"]
[Black "Crevatin, Leo"]
[Result "1-0"]
[ECO "D30"]
[WhiteElo "2598"]
[BlackElo "2108"]
[Annotator "ChessBase"]
[PlyCount "105"]
[EventDate "2019.12.05"]
[EventType "swiss"]
[EventCountry "EST"]
[SourceTitle "playchess.com"]
[Source "ChessBase"]
[SourceQuality "1"]
[TimeControl "900+10"]

1. d4 {[%emt 0:00:23]} d5 {[%emt 0:00:00]} 2. c4 {[%emt 0:00:03]} e6 {[%emt 0:00:00]} 3. Nf3 {[%emt 0:00:05]} a6 {[%emt 0:00:00]} 4. e3 {[%emt 0:00:18]} Nf6 {[%emt 0:00:00]} 5. b3 {[%emt 0:00:05]} c5 {[%emt 0:01:35]} 6. Bd3 {[%emt 0:00:23]} Nc6 {[%emt 0:00:10]} 7. Bb2 {[%emt 0:00:04]} cxd4 {[%emt 0:00:19]} 8. exd4 {[%emt 0:00:03]} b6 {[%emt 0:00:32]} 9. O-O {[%emt 0:00:09]} Bb7 {[%emt 0:00:01]} 10. Nbd2 {[%emt 0:00:20]} Be7 {[%emt 0:00:06]} 11. Qe2 {[%emt 0:00:07]} h6 {[%emt 0:00:06]} 12. Rad1 {[%emt 0:00:05]} O-O {[%emt 0:00:04]} 13. Rfe1 {[%emt 0:00:11]} Re8 {[%emt 0:00:20]} 14. Bb1 {[%emt 0:00:54]} a5 {[%emt 0:00:31]} 15. Ne5 {[%emt 0:00:12]} Nxe5 {[%emt 0:00:53]} 16. dxe5 {[%emt 0:00:05]} Nd7 {[%emt 0:00:02]} 17. cxd5 {[%emt 0:00:49]} Bxd5 {[%emt 0:00:02]} 18. Nc4 {[%emt 0:00:17]} Nf8 {[%emt 0:01:12]} 19. Ne3 {[%emt 0:00:14]} Bb4 {[%emt 0:00:54]} 20. Rf1 {[%emt 0:00:10]} Rc8 {[%emt 0:00:06]} 21. Nxd5 {[%emt 0:00:50]} exd5 {[%emt 0:00:02]} 22. Qf3 {[%emt 0:00:09]} Qe7 {[%emt 0:01:04]} 23. Rxd5 {[%emt 0:00:16]} Ba3 {[%emt 0:00:22]} 24. Bd4 {[%emt 0:02:34]} Bc5 {[%emt 0:00:13]} 25. Ba1 {[%emt 0:00:26]} Rcd8 {[%emt 0:00:16]} 26. Rfd1 {[%emt 0:00:07]} Rxd5 {[%emt 0:00:13]} 27. Rxd5 {[%emt 0:00:34]} Rd8 {[%emt 0:00:08]} 28. g3 {[%emt 0:01:24]} Rxd5 {[%emt 0:00:17]} 29. Qxd5 {[%emt 0:00:02]} Qg5 {[%emt 0:00:14]} 30. Bb2 {[%emt 0:00:45]} Ng6 {[%emt 0:01:30]} 31. Kf1 {[%emt 0:00:44]} Qh5 {[%emt 0:00:31]} 32. h4 {[%emt 0:00:49]} Qg4 {[%emt 0:00:50]} 33. Be4 {[%emt 0:03:51]} Nf8 {[%emt 0:01:11]} 34. Bf3 {[%emt 0:00:23]} Qh3+ {[%emt 0:00:14]} 35. Ke2 {[%emt 0:00:21]} Qc8 {[%emt 0:00:04]} 36. Qc4 {[%emt 0:00:18]} Ne6 {[%emt 0:00:57]} 37. Bd5 {[%emt 0:00:03]} Qd7 {[%emt 0:00:14]} 38. Bxe6 {[%emt 0:00:12]} fxe6 {[%emt 0:00:06]} 39. Bc1 {[%emt 0:00:35]} Qf7 {[%emt 0:01:03]} 40. Be3 {[%emt 0:00:14]} Qh5+ {[%emt 0:00:11]} 41. Kf1 {[%emt 0:01:23]} Qxe5 {[%emt 0:00:03]} 42. Bxc5 {[%emt 0:00:02]} bxc5 {[%emt 0:00:03]} 43. a4 {[%emt 0:00:14]} Qd5 {[%emt 0:00:43]} 44. Kg1 {[%emt 0:00:05]} Qxc4 {[%emt 0:00:13]} 45. bxc4 {[%emt 0:00:01]} Kf7 {[%emt 0:00:09]} 46. Kg2 {[%emt 0:00:15]} Kf6 {[%emt 0:00:01]} 47. Kf3 {[%emt 0:00:02]} Ke5 {[%emt 0:00:03]} 48. Ke3 {[%emt 0:00:01]} g5 {[%emt 0:00:30]} 49. hxg5 {[%emt 0:00:06]} hxg5 {[%emt 0:00:01]} 50. g4 {[%emt 0:00:02]} Kd6 {[%emt 0:01:15]} 51. f4 {[%emt 0:00:08]} gxf4+ {[%emt 0:00:14]} 52. Kxf4 {[%emt 0:00:02]} Ke7 {[%emt 0:00:05]} 53. Ke4 1-0

[Event "EIRCC 2019"]
[Site "Tallinn"]
[Date "2019.12.06"]
[Round "9.21"]
[White "Horvath, Dominik"]
[Black "Aleksandrov, Aleksej"]
[Result "0-1"]
[ECO "A13"]
[WhiteElo "2306"]
[BlackElo "2576"]
[Annotator "ChessBase"]
[PlyCount "122"]
[EventDate "2019.12.05"]
[EventType "swiss"]
[EventCountry "EST"]
[SourceTitle "playchess.com"]
[Source "ChessBase"]
[SourceQuality "1"]
[TimeControl "900+10"]

1. c4 {[%emt 0:03:16]} e6 {[%emt 0:00:00]} 2. g3 {[%emt 0:00:09]} d5 {[%emt 0:00:00]} 3. Bg2 {[%emt 0:00:01]} dxc4 {[%emt 0:00:03]} 4. Qa4+ {[%emt 0:00:02]} Nd7 {[%emt 0:00:02]} 5. Qxc4 {[%emt 0:00:03]} c5 {[%emt 0:00:01]} 6. Nh3 {[%emt 0:00:21]} Ngf6 {[%emt 0:00:38]} 7. O-O {[%emt 0:00:02]} Be7 {[%emt 0:00:04]} 8. b3 {[%emt 0:01:01]} O-O {[%emt 0:00:47]} 9. Bb2 {[%emt 0:00:01]} Rb8 {[%emt 0:00:00]} 10. Qc2 {[%emt 0:00:44]} b6 {[%emt 0:00:26]} 11. d3 {[%emt 0:00:19]} Bb7 {[%emt 0:00:15]} 12. e4 {[%emt 0:00:01]} Rc8 {[%emt 0:00:19]} 13. Nd2 {[%emt 0:00:02]} Nb8 {[%emt 0:00:07]} 14. Nc4 {[%emt 0:01:00]} Nc6 {[%emt 0:00:15]} 15. Qe2 {[%emt 0:00:02]} Nd4 {[%emt 0:00:46]} 16. Bxd4 {[%emt 0:00:02]} Qxd4 {[%emt 0:00:02]} 17. Rad1 {[%emt 0:00:05]} Nd7 {[%emt 0:00:23]} 18. Kh1 {[%emt 0:00:29]} b5 {[%emt 0:00:37]} 19. Ne3 {[%emt 0:00:13]} Ne5 {[%emt 0:00:23]} 20. f4 {[%emt 0:00:50]} Nc6 {[%emt 0:00:05]} 21. f5 {[%emt 0:00:11]} Qd6 {[%emt 0:00:07]} 22. Nf4 {[%emt 0:01:42]} Nd4 {[%emt 0:00:18]} 23. Qg4 {[%emt 0:00:37]} exf5 {[%emt 0:00:02]} 24. Nxf5 {[%emt 0:00:01]} Nxf5 {[%emt 0:00:02]} 25. Qxf5 {[%emt 0:00:43]} Bf6 {[%emt 0:00:46]} 26. Nd5 {[%emt 0:00:44]} Bd4 {[%emt 0:00:30]} 27. Rde1 {[%emt 0:01:22]} Rce8 {[%emt 0:00:09]} 28. e5 {[%emt 0:00:53]} Bxe5 {[%emt 0:02:56]} 29. Nf6+ {[%emt 0:00:10]} Qxf6 {[%emt 0:00:16]} 30. Bxb7 {[%emt 0:00:04]} Qxf5 {[%emt 0:00:29]} 31. Rxf5 {[%emt 0:00:02]} Bd4 {[%emt 0:00:21]} 32. Rxe8 {[%emt 0:00:36]} Rxe8 {[%emt 0:00:02]} 33. Be4 {[%emt 0:00:57]} g6 {[%emt 0:00:09]} 34. Rf1 {[%emt 0:00:01]} f5 {[%emt 0:01:04]} 35. Bc6 {[%emt 0:00:04]} Re2 {[%emt 0:00:02]} 36. Bxb5 {[%emt 0:00:20]} Rxa2 {[%emt 0:00:02]} 37. b4 {[%emt 0:00:28]} Kg7 {[%emt 0:00:17]} 38. Bc4 {[%emt 0:00:02]} Rd2 {[%emt 0:00:58]} 39. b5 {[%emt 0:00:34]} Be5 {[%emt 0:00:20]} 40. Re1 {[%emt 0:00:42]} Kf6 {[%emt 0:00:03]} 41. Rf1 {[%emt 0:00:01]} h5 {[%emt 0:00:02]} 42. Rb1 {[%emt 0:00:24]} h4 {[%emt 0:00:22]} 43. b6 {[%emt 0:00:51]} axb6 {[%emt 0:00:02]} 44. Rxb6+ {[%emt 0:00:01]} Kg7 {[%emt 0:00:01]} 45. gxh4 {[%emt 0:00:51]} Rxh2+ {[%emt 0:00:03]} 46. Kg1 {[%emt 0:00:01]} Rxh4 {[%emt 0:00:01]} 47. Kg2 {[%emt 0:00:11]} Rh2+ {[%emt 0:00:24]} 48. Kf3 {[%emt 0:00:13]} Bd4 {[%emt 0:01:50]} 49. Rc6 {[%emt 0:00:33]} Rf2+ {[%emt 0:00:09]} 50. Kg3 {[%emt 0:00:02]} Re2 {[%emt 0:00:02]} 51. Rc8 {[%emt 0:00:30]} Kh6 {[%emt 0:00:11]} 52. Rc6 {[%emt 0:00:09]} Re7 {[%emt 0:00:13]} 53. Kf4 {[%emt 0:00:25]} Kh5 {[%emt 0:00:12]} 54. Rc8 {[%emt 0:00:01]} Be3+ {[%emt 0:00:50]} 55. Kf3 {[%emt 0:00:01]} Kg5 {[%emt 0:00:02]} 56. Rc6 {[%emt 0:00:14]} Bd4 {[%emt 0:00:02]} 57. Be6 {[%emt 0:00:01]} Rh7 {[%emt 0:00:12]} 58. Bc4 {[%emt 0:00:01]} Rg7 {[%emt 0:00:25]} 59. Rc8 {[%emt 0:00:04]} Rb7 {[%emt 0:00:53]} 60. Rc6 {[%emt 0:00:03]} Rb2 {[%emt 0:00:03]} 61. Bf7 {[%emt 0:00:17]} Kh4 {[%emt 0:00:05]} 0-1